bitfinex/quotes_SOLUSD_20250514
["timestamp","ask_amount","ask_price","bid_price","bid_amount"]
[1747219424549,18.64964886,180.59,180.55,8.48850023]
[1747219424858,47.06533776,180.6,180.56,8.48850023]
[1747219425069,19.37984496,180.6,180.57,8.48850023]
[1747219425269,5.53709856,180.6,180.59,8.48850023]
[1747219425431,13.84074825,180.63,180.59,8.48850023]
[1747219425625,13.84074825,180.63,180.6,8.48850023]
[1747219426448,13.84074825,180.63,180.59,8.48850023]
[1747219427054,19.37692717,180.63,180.55,0.14216157]
[1747219427252,8.48850023,180.61,180.56,8.48850023]
[1747219427453,18.64964886,180.62,180.52,0.14216157]
[1747219427642,18.8,180.61,180.58,8.48850023]
[1747219427838,27.28850023,180.61,180.56,8.48850023]
[1747219428238,8.48850023,180.59,180.51,1.5921]
[1747219428439,18.64964886,180.6,180.54,8.48850023]
[1747219428646,8.48850023,180.59,180.54,8.48850023]
[1747219428857,8.48850023,180.59,180.51,1.5921]
[1747219428858,18.64964886,180.58,180.51,1.5921]
[1747219429044,27.13814909,180.58,180.54,8.48850023]
[1747219429246,19.38306473,180.57,180.53,8.48850023]
[1747219430060,27.87156496,180.57,180.49,26.0]
[1747219430238,27.87156496,180.57,180.52,8.48850023]
[1747219430562,8.48850023,180.56,180.51,8.48850023]
[1747219430934,27.87156496,180.57,180.52,8.48850023]
[1747219431453,27.87156496,180.57,180.49,26.0]
[1747219431454,19.38306473,180.57,180.54,8.48850023]
[1747219432363,19.38306473,180.57,180.53,8.48850023]
[1747219433067,19.38306473,180.57,180.54,8.48850023]
[1747219434133,19.38306473,180.57,180.55,8.48850023]
[1747219434559,19.38306473,180.57,180.56,8.48850023]
[1747219435069,5.53801849,180.57,180.56,8.48850023]
[1747219435283,19.38020193,180.6,180.56,8.48850023]
[1747219435445,19.38020193,180.6,180.58,8.48850023]
[1747219436550,19.38020193,180.6,180.59,8.48850023]
[1747219436551,5.53709856,180.6,180.59,8.48850023]
[1747219439354,13.84057583,180.63,180.59,8.48850023]
[1747219439570,13.84057583,180.63,180.61,8.48850023]
[1747219439754,13.84057583,180.63,180.6,8.48850023]
[1747219439975,22.32907606,180.63,180.58,8.48850023]
[1747219441149,13.84057583,180.63,180.59,8.48850023]
[1747219441349,19.37675475,180.63,180.59,8.48850023]
[1747219446155,18.64964886,180.62,180.59,8.48850023]
[1747219447072,5.53679198,180.61,180.59,8.48850023]
[1747219447447,27.13814909,180.6,180.53,8.48850023]
[1747219447652,8.48850023,180.57,180.52,8.48850023]
[1747219448881,8.48850023,180.57,180.48,26.28432314]
[1747219448882,18.64964886,180.53,180.48,4.34727108]
[1747219449069,27.87693364,180.52,180.48,4.34727108]
[1747219449382,27.87693364,180.52,180.48,8.48850023]
[1747219449679,19.38843341,180.52,180.48,8.48850023]
[1747219450779,27.87693364,180.52,180.48,8.48850023]
[1747219451788,19.38843341,180.52,180.48,8.48850023]
[1747219454480,27.87693364,180.52,180.48,8.48850023]
[1747219455667,27.87693364,180.52,180.43,27.86072314]
[1747219455668,27.13814909,180.51,180.47,8.48850023]
[1747219455876,18.64964886,180.49,180.45,8.48850023]
[1747219456129,8.48850023,180.48,180.43,8.48850023]
[1747219456281,18.64964886,180.47,180.43,8.48850023]
[1747219456978,18.64964886,180.46,180.42,8.48850023]
[1747219457164,5.5417013,180.45,180.42,8.48850023]
[1747219457373,5.5417013,180.45,180.43,8.48850023]
[1747219457967,19.39595455,180.45,180.43,8.48850023]
[1747219460888,19.39595455,180.45,180.42,8.48850023]
[1747219462696,19.39595455,180.45,180.41,8.48850023]
[1747219462897,19.39595455,180.45,180.37,26.0]
[1747219462898,18.64964886,180.44,180.37,26.0]
[1747219463078,27.13814909,180.44,180.37,26.0]
[1747219463570,8.48850023,180.43,180.37,26.0]
[1747219463766,8.48850023,180.42,180.35,1.5626]
[1747219463978,18.64964886,180.41,180.37,8.48850023]
[1747219464798,5.54323725,180.4,180.37,8.48850023]
[1747219465189,18.64964886,180.39,180.31,4.42011416]
[1747219465389,27.13814909,180.39,180.34,8.48850023]
[1747219465977,27.13814909,180.39,180.31,26.0]
[1747219466180,8.48850023,180.38,180.33,8.48850023]
[1747219466379,8.48850023,180.38,180.34,8.48850023]
[1747219466772,8.48850023,180.38,180.31,26.0]
[1747219466978,5.54415922,180.37,180.33,8.48850023]
[1747219467179,5.54415922,180.37,180.34,8.48850023]
[1747219468206,5.54396122,180.38,180.36,8.48850023]
[1747219468505,5.54396122,180.38,180.35,8.48850023]
[1747219468672,5.54396122,180.38,180.34,8.48850023]
[1747219469099,14.03246145,180.38,180.33,8.48850023]
[1747219469484,18.64964886,180.37,180.33,8.48850023]
[1747219469987,27.13814909,180.37,180.32,8.48850023]
[1747219470598,8.48850023,180.36,180.31,8.48850023]
[1747219470806,27.13814909,180.37,180.32,8.48850023]
[1747219471310,5.54446662,180.36,180.32,8.48850023]
[1747219475163,27.13814909,180.35,180.26,27.5152]
[1747219475448,8.48850023,180.33,180.28,8.48850023]
[1747219475823,18.64964886,180.33,180.29,8.48850023]
[1747219476027,5.54569653,180.32,180.29,8.48850023]
[1747219476230,5.54569653,180.32,180.3,8.48850023]
[1747219477121,18.64964886,180.34,180.31,8.48850023]
[1747219477329,5.54477405,180.35,180.33,8.48850023]
[1747219477540,5.54477405,180.35,180.34,8.48850023]
[1747219479353,5.54477405,180.35,180.33,8.48850023]
[1747219479531,5.54477405,180.35,180.27,34.48850023]
[1747219479532,18.64964886,180.34,180.31,8.48850023]
[1747219479854,18.64964886,180.34,180.3,8.48850023]
[1747219480425,5.545389,180.33,180.31,8.48850023]
[1747219480651,5.545389,180.33,180.32,8.48850023]
[1747219481547,19.40886152,180.33,180.31,8.48850023]
[1747219483073,19.40886152,180.33,180.32,8.48850023]
[1747219485963,5.54477405,180.35,180.32,8.48850023]
[1747219486164,19.40670917,180.35,180.33,8.48850023]
[1747219494565,19.40670917,180.35,180.3,26.0]
[1747219494758,19.40670917,180.35,180.33,8.48850023]
[1747219496261,5.54477405,180.35,180.34,8.48850023]
[1747219496842,5.54477405,180.35,180.33,8.48850023]
[1747219498465,5.54477405,180.35,180.34,8.48850023]
[1747219499866,5.54477405,180.35,180.29,33.5858]
[1747219500056,5.54477405,180.35,180.33,8.48850023]
[1747219500680,13.86158601,180.36,180.33,8.48850023]
[1747219500845,5.54415922,180.37,180.34,8.48850023]
[1747219501045,18.64964886,180.36,180.33,8.48850023]
[1747219501285,18.64964886,180.36,180.29,33.5858]
[1747219501286,18.64964886,180.36,180.32,8.48850023]
[1747219502068,5.54477405,180.35,180.32,8.48850023]
[1747219502367,5.54477405,180.35,180.33,8.48850023]
[1747219504554,19.40670917,180.35,180.32,8.48850023]
[1747219504758,19.40670917,180.35,180.31,8.48850023]
[1747219505074,18.64964886,180.34,180.27,26.0]
[1747219505254,19.40670917,180.35,180.25,1.5621]
[1747219505255,18.64964886,180.32,180.25,1.5621]
[1747219505455,18.64964886,180.32,180.27,8.48850023]
[1747219506183,19.41101436,180.31,180.27,8.48850023]
[1747219506365,18.64964886,180.3,180.26,8.48850023]
[1747219507278,19.41316766,180.29,180.21,7.8553]
[1747219507449,18.64964886,180.28,180.24,8.48850023]
[1747219508760,5.5472347,180.27,180.24,8.48850023]
[1747219509264,19.41532145,180.27,180.21,27.5987]
[1747219509571,19.41532145,180.27,180.23,8.48850023]
[1747219509787,18.64964886,180.26,180.21,27.5987]
[1747219509978,18.64964886,180.26,180.22,8.48850023]
[1747219510454,18.64964886,180.26,180.23,8.48850023]
[1747219510656,19.41532145,180.27,180.24,8.48850023]
[1747219511043,5.5472347,180.27,180.26,8.48850023]
[1747219511349,5.5472347,180.27,180.25,8.48850023]
[1747219512360,18.64964886,180.26,180.23,8.48850023]
[1747219512584,18.64964886,180.26,180.22,8.48850023]
[1747219513100,5.5478502,180.25,180.22,8.48850023]
[1747219519574,5.5478502,180.25,180.23,8.48850023]
[1747219521503,19.41747572,180.25,180.18,26.0]
[1747219522100,19.41747572,180.25,180.23,8.48850023]
[1747219522792,19.41747572,180.25,180.22,8.48850023]
[1747219523599,19.41747572,180.25,180.21,8.48850023]
[1747219524485,27.13814909,180.24,180.19,8.48850023]
[1747219525974,27.13814909,180.22,180.17,8.48850023]
[1747219526181,18.64964886,180.22,180.18,8.48850023]
[1747219527775,8.48850023,180.21,180.12,1.6307]
[1747219527980,8.48850023,180.21,180.15,8.48850023]
[1747219527981,38.07359025,180.19,180.15,8.48850023]
[1747219528207,5.54969754,180.19,180.13,26.0]
[1747219528508,5.54969754,180.19,180.17,8.48850023]
[1747219529202,5.54969754,180.19,180.15,8.48850023]
[1747219529400,14.03819777,180.19,180.14,8.48850023]
[1747219529776,18.64964886,180.18,180.14,8.48850023]
[1747219529981,18.64964886,180.18,180.09,11.38151193]
[1747219529982,27.13814909,180.18,180.13,8.48850023]
[1747219530907,19.42609757,180.17,180.13,8.48850023]
[1747219531403,19.42609757,180.17,180.14,8.48850023]
[1747219534003,18.64964886,180.16,180.09,26.0]
[1747219534211,18.64964886,180.16,180.12,8.48850023]
[1747219534411,18.64964886,180.16,180.13,8.48850023]
[1747219534999,5.55092978,180.15,180.13,8.48850023]
[1747219535208,5.55092978,180.15,180.14,8.48850023]
[1747219535880,5.55092978,180.15,180.13,8.48850023]
[1747219536293,5.55092978,180.15,180.09,34.48850023]
[1747219536498,5.55092978,180.15,180.13,8.48850023]
[1747219537480,18.64964886,180.16,180.13,8.48850023]
[1747219538606,5.55031359,180.17,180.15,8.48850023]
[1747219540215,19.42609757,180.17,180.14,8.48850023]
[1747219541280,19.42609757,180.17,180.15,8.48850023]
[1747219541487,5.55031359,180.17,180.1,0.28432314]
[1747219541700,5.55031359,180.17,180.09,40.32552464]
[1747219541701,5.55031359,180.17,180.15,8.48850023]
[1747219544302,5.55031359,180.17,180.14,8.48850023]
[1747219544925,19.42609757,180.17,180.14,8.48850023]
[1747219545090,18.64964886,180.16,180.12,8.48850023]
[1747219545790,5.55092978,180.15,180.12,8.48850023]
[1747219546428,19.42825423,180.15,180.08,1.6159]
[1747219546620,19.42825423,180.15,180.12,8.48850023]
[1747219548816,18.64964886,180.14,180.12,8.48850023]
[1747219549023,18.64964886,180.14,180.08,1.6159]
[1747219549334,18.64964886,180.14,180.12,8.48850023]
[1747219550427,18.64964886,180.14,180.07,8.48850023]
[1747219550428,18.64964886,180.12,180.07,8.48850023]
[1747219550718,27.13814909,180.12,180.07,8.48850023]
[1747219551505,18.64964886,180.1,180.02,26.0]
[1747219551713,18.64964886,180.1,180.07,8.48850023]
[1747219552016,18.64964886,180.1,180.02,26.0]
[1747219552320,27.13814909,180.1,180.06,8.48850023]
[1747219552508,18.64964886,180.1,180.06,8.48850023]
[1747219553030,8.48850023,180.09,180.05,8.48850023]
[1747219553499,5.55308751,180.08,180.04,8.48850023]
[1747219554022,5.55308751,180.08,180.05,8.48850023]
[1747219554241,18.64964886,180.07,180.03,8.48850023]
[1747219554528,37.38964886,180.07,180.03,8.48850023]
[1747219555120,37.38964886,180.07,180.04,8.48850023]
[1747219555495,5.55370432,180.06,180.04,8.48850023]
[1747219555714,5.55370432,180.06,180.05,8.48850023]
[1747219557311,5.55370432,180.06,179.99,5.84013542]
[1747219557496,5.55370432,180.06,180.0,8.48850023]
[1747219557697,5.55370432,180.06,180.05,8.48850023]
[1747219558110,18.74,180.07,180.05,8.48850023]
[1747219558111,13.88073591,180.11,180.05,8.48850023]
[1747219558427,37.38964886,180.1,180.0,14.04377264]
[1747219558604,37.38964886,180.1,180.07,8.48850023]
[1747219559128,42.9421197,180.1,180.07,8.48850023]
[1747219560937,24.29247084,180.1,180.09,8.48850023]
[1747219565221,24.29247084,180.1,180.08,8.48850023]
[1747219567102,24.29247084,180.1,180.03,26.0]
[1747219567301,24.29247084,180.1,180.08,8.48850023]
[1747219568329,24.29247084,180.1,180.03,26.0]
[1747219568507,24.29247084,180.1,180.08,8.48850023]
[1747219569219,27.13814909,180.09,180.01,26.0]
[1747219569399,18.64964886,180.09,180.04,8.48850023]
[1747219569604,27.13814909,180.09,180.04,8.48850023]
[1747219569804,27.13814909,180.09,180.0,8.48850023]
[1747219570024,27.13814909,180.09,180.04,8.48850023]
[1747219570338,18.64964886,180.07,180.04,8.48850023]
[1747219572413,5.55370432,180.06,180.04,8.48850023]
[1747219572631,18.64964886,180.05,180.03,8.48850023]
[1747219572808,18.64964886,180.05,179.98,27.5301]
[1747219572809,18.64964886,180.05,180.02,8.48850023]
[1747219573234,18.64964886,180.05,179.98,1.5301]
[1747219573412,18.64964886,180.05,180.02,8.48850023]
[1747219573846,27.13814909,180.05,179.96,26.0]
[1747219574136,18.64964886,180.03,180.0,8.48850023]
[1747219574316,18.64964886,180.03,179.95,26.0]
[1747219574522,18.64964886,180.03,179.93,9.91248098]
[1747219574523,5.55493834,180.02,179.93,1.5704]
[1747219574717,5.55493834,180.02,179.98,8.48850023]
[1747219574921,19.44228419,180.02,179.98,8.48850023]
[1747219575243,19.44228419,180.02,180.0,8.48850023]
[1747219575943,5.55493834,180.02,180.01,8.48850023]
[1747219576630,5.55462978,180.03,180.01,8.48850023]
[1747219577533,19.44120423,180.03,179.95,0.28432314]
[1747219577835,19.44120423,180.03,180.01,8.48850023]
[1747219579922,19.44120423,180.03,179.95,5.84130796]
[1747219579923,5.55462978,180.03,180.02,8.48850023]
[1747219581944,5.55432126,180.04,180.02,8.48850023]
[1747219582128,5.55432126,180.04,180.03,8.48850023]
[1747219584054,19.44012441,180.04,180.03,8.48850023]
[1747219584361,18.64964886,180.03,180.01,8.48850023]
[1747219584561,18.64964886,180.03,180.0,8.48850023]
[1747219586220,5.55493834,180.02,180.0,8.48850023]
[1747219586636,5.55493834,180.02,180.01,8.48850023]
[1747219588652,19.44012441,180.04,180.01,8.48850023]
[1747219589151,38.08977327,180.04,180.03,8.48850023]
[1747219589658,5.55432126,180.04,180.03,8.48850023]
[1747219591853,5.55432126,180.04,180.0,8.48850023]
[1747219592040,5.55432126,180.04,180.03,8.48850023]
[1747219593546,19.44012441,180.04,180.02,8.48850023]
[1747219596872,19.44012441,180.04,179.96,32.67382314]
[1747219597168,19.44012441,180.04,180.02,8.48850023]
[1747219597375,19.44012441,180.04,179.96,32.67382314]
[1747219597741,19.44012441,180.04,180.01,8.48850023]
[1747219598546,18.64964886,180.03,180.01,8.48850023]
[1747219598971,5.55493834,180.02,180.01,8.48850023]
[1747219599766,5.55493834,180.02,180.0,8.48850023]
[1747219599767,19.44228419,180.02,180.0,8.48850023]
[1747219600634,38.09193305,180.02,180.01,8.48850023]
[1747219601273,38.09193305,180.02,180.0,8.48850023]
[1747219602968,38.09193305,180.02,179.94,26.28432314]
[1747219603144,38.09193305,180.02,180.0,8.48850023]
[1747219604976,38.09193305,180.02,179.94,26.28432314]
[1747219605177,38.09193305,180.02,180.0,8.48850023]
[1747219605974,13.88734585,180.02,180.01,8.48850023]
[1747219608384,19.44228419,180.02,180.01,8.48850023]
[1747219608543,5.55493834,180.02,180.01,8.48850023]
[1747219610682,32.60543904,180.05,180.01,8.48850023]
[1747219610683,5.55432126,180.04,180.01,8.48850023]
[1747219611050,5.55432126,180.04,180.03,8.48850023]
[1747219613381,38.08977327,180.04,179.96,26.0]
[1747219613590,19.44012441,180.04,179.96,26.0]
[1747219613901,38.08977327,180.04,180.03,8.48850023]
[1747219614056,38.08977327,180.04,179.96,26.0]
[1747219614264,38.08977327,180.04,180.01,8.48850023]
[1747219619793,38.08977327,180.04,180.02,8.48850023]
[1747219620163,5.55432126,180.04,180.03,8.48850023]
[1747219622595,18.72,180.05,180.03,8.48850023]
[1747219622774,24.27414932,180.05,180.04,8.48850023]
[1747219625693,38.15918125,180.05,180.03,8.48850023]
[1747219625992,18.64964886,180.04,180.02,8.48850023]
[1747219626303,18.64964886,180.04,179.95,7.9462]
[1747219626493,18.64964886,180.04,180.01,8.48850023]
[1747219626797,18.64964886,180.04,180.02,8.48850023]
[1747219627096,38.15918125,180.05,180.03,8.48850023]
[1747219627465,38.15918125,180.05,180.02,8.48850023]
[1747219630502,18.64964886,180.04,180.0,8.48850023]
[1747219631804,18.64964886,180.02,180.0,8.48850023]
[1747219631975,18.64964886,180.02,179.95,33.9462]
[1747219632501,18.64964886,180.02,180.0,8.48850023]
[1747219633206,5.55524693,180.01,180.0,8.48850023]
[1747219634076,19.44336425,180.01,179.95,1.5958]
[1747219634279,19.44336425,180.01,179.97,8.48850023]
[1747219634474,18.64964886,180.0,179.95,1.5958]
[1747219634674,18.64964886,180.0,179.97,8.48850023]
[1747219635299,5.55586421,179.99,179.97,8.48850023]
[1747219636178,5.55586421,179.99,179.98,8.48850023]
[1747219636388,32.53776618,180.01,179.97,8.48850023]
[1747219636389,24.20520441,180.0,179.97,8.48850023]
[1747219638398,38.09409329,180.0,179.96,8.48850023]
[1747219638710,38.09409329,180.0,179.94,8.48850023]
[1747219638711,45.81814909,179.99,179.94,8.48850023]
[1747219638907,37.32964886,179.99,179.91,8.48850023]
[1747219639210,18.68,179.99,179.98,8.48850023]
[1747219639593,5.5561729,179.98,179.96,8.48850023]
[1747219639794,5.5561729,179.98,179.95,8.48850023]
[1747219640013,19.44660517,179.98,179.94,8.48850023]
[1747219640305,19.44660517,179.98,179.95,8.48850023]
[1747219640506,27.9351054,179.98,179.93,8.48850023]
[1747219643884,19.44660517,179.98,179.95,8.48850023]
[1747219644080,7.8258,180.05,179.96,8.48850023]
[1747219644286,37.32964886,180.04,179.99,8.48850023]
[1747219644504,8.48850023,180.03,179.93,0.28432314]
[1747219644715,8.48850023,180.03,179.99,8.48850023]
[1747219645097,45.81814909,180.04,179.99,8.48850023]
[1747219645294,65.25872315,180.04,179.99,8.48850023]
[1747219645492,56.77022292,180.04,179.99,8.48850023]
[1747219645699,65.25872315,180.04,179.99,8.48850023]
[1747219646104,56.77022292,180.04,180.0,8.48850023]
[1747219646295,24.23432126,180.04,180.01,8.48850023]
[1747219646495,24.23432126,180.04,179.97,5.55642826]
[1747219646699,24.23432126,180.04,180.03,8.48850023]
[1747219647012,24.23432126,180.04,180.02,8.48850023]
[1747219647989,24.23432126,180.04,180.01,8.48850023]
[1747219648211,24.23432126,180.04,180.0,8.48850023]
[1747219648699,38.12012441,180.04,180.0,8.48850023]
[1747219648995,38.12012441,180.04,180.01,8.48850023]
[1747219649209,38.12012441,180.04,180.0,8.48850023]
[1747219649404,38.12012441,180.04,179.99,8.48850023]
[1747219649405,18.64964886,180.03,179.99,8.48850023]
[1747219649624,5.55493834,180.02,179.99,8.48850023]
[1747219649798,5.55493834,180.02,180.0,8.48850023]
[1747219654600,19.44228419,180.02,179.98,8.48850023]
[1747219654798,19.44228419,180.02,179.99,8.48850023]
[1747219655105,19.44228419,180.02,179.98,8.48850023]
[1747219655499,18.64964886,180.01,179.97,8.48850023]
[1747219656333,27.13814909,180.01,179.96,8.48850023]
[1747219656493,19.44444443,180.0,179.96,8.48850023]
[1747219657121,18.64964886,179.99,179.95,8.48850023]
[1747219657493,27.13814909,179.99,179.94,8.48850023]
[1747219658724,27.13814909,179.99,179.93,8.48850023]
[1747219658725,27.9351054,179.98,179.93,8.48850023]
[1747219658890,46.5751054,179.98,179.93,8.48850023]
[1747219659322,46.5751054,179.98,179.94,8.48850023]
[1747219659620,46.5751054,179.98,179.85,1.6084]
[1747219659621,8.48850023,179.95,179.85,1.6084]
[1747219659821,8.48850023,179.95,179.9,8.48850023]
[1747219660012,8.48850023,179.95,179.91,8.48850023]
[1747219660328,27.13814909,179.96,179.91,8.48850023]
[1747219660710,19.44984717,179.95,179.92,8.48850023]
[1747219660903,19.44984717,179.95,179.94,8.48850023]
[1747219661931,13.89274798,179.95,179.94,8.48850023]
[1747219663031,5.55679039,179.96,179.94,8.48850023]
[1747219664129,5.55648163,179.97,179.95,8.48850023]
[1747219664329,5.55648163,179.97,179.96,8.48850023]
[1747219665009,5.55555555,180.0,179.96,8.48850023]
[1747219665211,5.55555555,180.0,179.99,8.48850023]
[1747219666013,5.55555555,180.0,179.98,8.48850023]
[1747219667020,5.55555555,180.0,179.99,8.48850023]
[1747219668831,5.55555555,180.0,179.98,8.48850023]
[1747219670408,5.55555555,180.0,179.99,8.48850023]
[1747219672945,5.55555555,180.0,179.93,31.84196339]
[1747219673245,5.55555555,180.0,179.99,8.48850023]
[1747219674755,18.64,180.01,179.99,8.48850023]
[1747219675048,24.19524693,180.01,180.0,8.48850023]
[1747219676640,24.19524693,180.01,179.92,7.10554466]
[1747219676847,38.08336425,180.01,179.98,8.48850023]
[1747219678552,38.08336425,180.01,179.99,8.48850023]
[1747219678856,24.19524693,180.01,180.0,8.48850023]
[1747219679756,5.55401277,180.05,180.0,8.48850023]
[1747219679930,5.55401277,180.05,179.97,5.55646799]
[1747219679931,5.55401277,180.05,180.02,8.48850023]
[1747219681531,19.4390447,180.05,180.01,8.48850023]
[1747219682050,27.92754493,180.05,179.99,8.48850023]
[1747219682252,8.48850023,180.03,179.99,8.48850023]
[1747219682740,8.48850023,180.03,179.98,8.48850023]
[1747219683451,19.44228419,180.02,179.98,8.48850023]
[1747219684230,27.93078442,180.02,179.97,8.48850023]
[1747219685835,18.64964886,180.01,179.97,8.48850023]
[1747219686038,18.64,180.0,179.96,8.48850023]
[1747219686970,18.64,180.0,179.99,8.48850023]
[1747219687863,24.19555555,180.0,179.99,8.48850023]
[1747219688257,5.55555555,180.0,179.99,8.48850023]
[1747219688647,5.55493834,180.02,179.99,8.48850023]
[1747219688848,5.55493834,180.02,180.0,8.48850023]
[1747219689456,5.55493834,180.02,179.99,8.48850023]
[1747219692273,19.44228419,180.02,179.98,8.48850023]
[1747219692567,19.44228419,180.02,179.94,26.0]
[1747219692946,19.44228419,180.02,179.98,8.48850023]
[1747219693471,27.93078442,180.02,179.97,8.48850023]
[1747219693639,27.13814909,180.01,179.96,8.48850023]
[1747219693842,18.64964886,180.01,179.96,8.48850023]
[1747219694079,18.64964886,180.01,179.92,1.5476]
[1747219694370,19.44444443,180.0,179.97,8.48850023]
[1747219694754,19.44444443,180.0,179.92,1.5476]
[1747219694954,19.44444443,180.0,179.97,8.48850023]
[1747219695157,18.64964886,179.99,179.92,1.5476]
[1747219695364,8.48850023,179.97,179.93,8.48850023]
[1747219695544,27.10850023,179.97,179.93,8.48850023]
[1747219696145,18.62,179.97,179.93,8.48850023]
[1747219696648,5.55679039,179.96,179.92,8.48850023]
[1747219696863,14.04529062,179.96,179.91,8.48850023]
[1747219697875,27.93726661,179.96,179.91,8.48850023]
[1747219698287,27.93726661,179.96,179.89,26.0]
[1747219698449,27.93726661,179.96,179.91,8.48850023]
[1747219699249,27.13814909,179.95,179.9,8.48850023]
[1747219699474,27.13814909,179.95,179.86,6.39652314]
[1747219699651,27.13814909,179.95,179.9,8.48850023]
[1747219700793,19.45092808,179.94,179.9,8.48850023]
[1747219705598,27.93942831,179.94,179.85,26.0]
[1747219705799,19.45092808,179.94,179.82,2.89718135]
[1747219706006,8.48850023,179.89,179.84,8.48850023]
[1747219706208,27.10850023,179.89,179.84,8.48850023]
[1747219706507,27.10850023,179.89,179.85,8.48850023]
[1747219706508,18.62,179.89,179.85,8.48850023]
[1747219706887,5.55926173,179.88,179.85,8.48850023]
[1747219707090,5.55926173,179.88,179.84,8.48850023]
[1747219707293,8.48850023,179.86,179.81,8.48850023]
[1747219707805,18.64964886,179.87,179.83,8.48850023]
[1747219708106,27.94591628,179.88,179.83,8.48850023]
[1747219708318,19.45741605,179.88,179.84,8.48850023]
[1747219708609,27.94591628,179.88,179.83,8.48850023]
[1747219709215,27.94591628,179.88,179.79,26.0]
[1747219709587,27.94591628,179.88,179.83,8.48850023]
[1747219710586,5.55926173,179.88,179.85,8.48850023]
[1747219711104,5.55926173,179.88,179.86,8.48850023]
[1747219711905,5.55926173,179.88,179.82,8.48850023]
[1747219712079,5.55926173,179.88,179.86,8.48850023]
[1747219715712,5.55926173,179.88,179.85,8.48850023]
[1747219715886,5.55926173,179.88,179.84,8.48850023]
[1747219716087,27.94591628,179.88,179.83,8.48850023]
[1747219716805,19.45741605,179.88,179.85,8.48850023]
[1747219717006,5.55926173,179.88,179.86,8.48850023]
[1747219717311,5.55926173,179.88,179.85,8.48850023]
[1747219718413,5.55926173,179.88,179.86,8.48850023]
[1747219718710,5.55926173,179.88,179.85,8.48850023]
[1747219719484,19.45741605,179.88,179.84,8.48850023]
[1747219720090,19.45741605,179.88,179.8,0.28432314]
[1747219720318,19.45741605,179.88,179.85,8.48850023]
[1747219721020,19.45741605,179.88,179.84,8.48850023]
[1747219722523,18.64964886,179.87,179.78,26.0]
[1747219722722,5.5598799,179.86,179.83,8.48850023]
[1747219723020,19.45957966,179.86,179.82,8.48850023]
[1747219729926,19.45957966,179.86,179.78,26.0]
[1747219729927,27.94807989,179.86,179.78,26.0]
[1747219730303,8.48850023,179.83,179.75,1.6514]
[1747219730522,8.48850023,179.84,179.79,8.48850023]
[1747219730724,45.73814909,179.85,179.8,8.48850023]
[1747219731030,19.46174377,179.84,179.76,26.0]
[1747219731227,19.46174377,179.84,179.8,8.48850023]
[1747219731528,27.950244,179.84,179.79,8.48850023]
[1747219731705,27.950244,179.84,179.8,8.48850023]
[1747219732526,19.46174377,179.84,179.8,8.48850023]
[1747219733025,19.46174377,179.84,179.76,26.0]
[1747219733211,19.46174377,179.84,179.8,8.48850023]
[1747219734508,19.46174377,179.84,179.81,8.48850023]
[1747219734811,19.46174377,179.84,179.8,8.48850023]
[1747219737116,19.46174377,179.84,179.76,26.0]
[1747219737117,27.950244,179.84,179.76,26.0]
[1747219737626,27.950244,179.84,179.79,8.48850023]
[1747219738439,27.950244,179.84,179.76,26.0]
[1747219738747,27.950244,179.84,179.79,8.48850023]
[1747219738918,19.46174377,179.84,179.8,8.48850023]
[1747219739124,27.950244,179.84,179.8,8.48850023]
[1747219739548,27.950244,179.84,179.71,7.30225717]
[1747219739549,45.73814909,179.83,179.71,7.30225717]
[1747219739751,8.48850023,179.8,179.76,8.48850023]
[1747219740241,8.48850023,179.8,179.75,8.48850023]
[1747219740754,8.48850023,179.8,179.72,26.0]
[1747219740918,8.48850023,179.8,179.75,8.48850023]
[1747219741233,19.46715611,179.79,179.75,8.48850023]
[1747219742025,19.46715611,179.79,179.77,8.48850023]
[1747219742346,19.46715611,179.79,179.76,8.48850023]
[1747219743246,19.46715611,179.79,179.77,8.48850023]
[1747219743444,13.90511151,179.79,179.77,8.48850023]
[1747219743643,13.90511151,179.79,179.76,8.48850023]
[1747219744951,13.90511151,179.79,179.71,26.0]
[1747219745165,22.39361174,179.79,179.74,8.48850023]
[1747219746153,22.39361174,179.79,179.7,26.0]
[1747219746154,13.90511151,179.79,179.75,8.48850023]
[1747219746732,13.90511151,179.79,179.76,8.48850023]
[1747219746927,13.90511151,179.79,179.71,0.28432314]
[1747219747163,19.46715611,179.79,179.76,8.48850023]
[1747219748048,18.64964886,179.78,179.7,30.38130404]
[1747219748262,27.08850023,179.77,179.73,8.48850023]
[1747219748557,18.6,179.77,179.73,8.48850023]
[1747219749065,5.56297285,179.76,179.73,8.48850023]
[1747219749747,5.56297285,179.76,179.74,8.48850023]
[1747219750971,5.56297285,179.76,179.7,26.0]
[1747219751135,5.56297285,179.76,179.73,8.48850023]
[1747219751564,19.47040498,179.76,179.72,8.48850023]
[1747219751742,19.47040498,179.76,179.68,27.90412314]
[1747219751928,19.47040498,179.76,179.72,8.48850023]
[1747219752728,27.95890521,179.76,179.71,8.48850023]
[1747219752924,18.64964886,179.75,179.71,8.48850023]
[1747219753445,8.48850023,179.73,179.68,8.48850023]